[Event "Titled Tuesday Blitz March 22 Late 2022"]
[White "Rostovtsev, Dmitry"]
[Black "Paravyan, David"]
[WhiteFideId "34278320"]
[BlackFideId "4194985"]
[WhiteElo "2359"]
[BlackElo "2569"]
[Result "1/2-1/2"]
[Round "02"]
[TimeControl "180+1"]
[Date "2022.03.22"]
[WhiteClock "0:01:06"]
[BlackClock "0:00:31"]

1. e4 {[%clk 0:03:00]}  e5 {[%clk 0:02:57]} 2. Nf3 {[%clk 0:03:01]}  Nf6 {[%clk 0:02:57]} 3. d4 {[%clk 0:02:59]}  Nxe4 {[%clk 0:02:57]} 4. Bd3 {[%clk 0:02:59]}  d5 {[%clk 0:02:57]} 5. dxe5 {[%clk 0:02:59]}  Nc5 {[%clk 0:02:49]} 6. Be2 {[%clk 0:02:58]}  Nc6 {[%clk 0:02:46]} 7. O-O {[%clk 0:02:59]}  Be7 {[%clk 0:02:44]} 8. a3 {[%clk 0:02:54]}  Bg4 {[%clk 0:02:44]} 9. h3 {[%clk 0:02:53]}  Bh5 {[%clk 0:02:43]} 10. b4 {[%clk 0:02:51]}  Ne6 {[%clk 0:02:43]} 11. b5 {[%clk 0:02:48]}  Bxf3 {[%clk 0:02:36]} 12. Bxf3 {[%clk 0:02:49]}  Ncd4 {[%clk 0:02:37]} 13. c3 {[%clk 0:02:48]}  Nxf3+ {[%clk 0:02:37]} 14. Qxf3 {[%clk 0:02:48]}  Qd7 {[%clk 0:02:35]} 15. a4 {[%clk 0:02:41]}  a6 {[%clk 0:01:55]} 16. Rd1 {[%clk 0:02:37]}  axb5 {[%clk 0:01:55]} 17. Rxd5 {[%clk 0:02:34]}  Qc8 {[%clk 0:01:55]} 18. Rxb5 {[%clk 0:02:34]}  c6 {[%clk 0:01:56]} 19. Rb2 {[%clk 0:02:30]}  Qc7 {[%clk 0:01:53]} 20. Be3 {[%clk 0:02:19]}  O-O {[%clk 0:01:47]} 21. Nd2 {[%clk 0:02:15]}  b5 {[%clk 0:01:43]} 22. Qe4 {[%clk 0:02:08]}  bxa4 {[%clk 0:01:31]} 23. Rxa4 {[%clk 0:02:08]}  Rxa4 {[%clk 0:01:30]} 24. Qxa4 {[%clk 0:02:08]}  Qxe5 {[%clk 0:01:30]} 25. Qxc6 {[%clk 0:02:07]}  Bc5 {[%clk 0:01:00]} 26. Nf3 {[%clk 0:01:50]}  Qxc3 {[%clk 0:00:53]} 27. Bxc5 {[%clk 0:01:35]}  Qxb2 {[%clk 0:00:40]} 28. Bxf8 {[%clk 0:01:35]}  Nxf8 {[%clk 0:00:41]} 29. Qc8 {[%clk 0:01:28]}  Qf6 {[%clk 0:00:40]} 30. Qe8 {[%clk 0:01:24]}  g6 {[%clk 0:00:39]} 31. Kh1 {[%clk 0:01:22]}  Kg7 {[%clk 0:00:38]} 32. Qe5 {[%clk 0:01:22]}  Ne6 {[%clk 0:00:38]} 33. Kh2 {[%clk 0:01:21]}  h5 {[%clk 0:00:37]} 34. g4 {[%clk 0:01:20]}  hxg4 {[%clk 0:00:34]} 35. hxg4 {[%clk 0:01:19]}  Qxe5+ {[%clk 0:00:33]} 36. Nxe5 {[%clk 0:01:20]}  Kf6 {[%clk 0:00:34]} 37. Nf3 {[%clk 0:01:20]}  Nf4 {[%clk 0:00:31]} 38. Kg3 {[%clk 0:01:20]}  Nd3 {[%clk 0:00:31]} 39. Nd2 {[%clk 0:01:19]}  Ke5 {[%clk 0:00:31]} 40. Nf3+ {[%clk 0:01:18]}  Kf6 {[%clk 0:00:29]} 41. Nd2 {[%clk 0:01:18]}  g5 {[%clk 0:00:27]} 42. Ne4+ {[%clk 0:01:17]}  Kg6 {[%clk 0:00:28]} 43. Nd6 {[%clk 0:01:17]}  Nf4 {[%clk 0:00:27]} 44. Ne4 {[%clk 0:01:17]}  Ne6 {[%clk 0:00:27]} 45. Nd6 {[%clk 0:01:16]}  Nf4 {[%clk 0:00:27]} 46. Ne4 {[%clk 0:01:16]}  f6 {[%clk 0:00:28]} 47. Kf3 {[%clk 0:01:15]}  Ne6 {[%clk 0:00:28]} 48. Kg3 {[%clk 0:01:15]}  Nd4 {[%clk 0:00:28]} 49. Kg2 {[%clk 0:01:15]}  Kf7 {[%clk 0:00:28]} 50. Kg3 {[%clk 0:01:15]}  Ke6 {[%clk 0:00:29]} 51. Nd2 {[%clk 0:01:11]}  Ke5 {[%clk 0:00:28]} 52. Nf3+ {[%clk 0:01:04]}  Nxf3 {[%clk 0:00:27]} 53. Kxf3 {[%clk 0:01:05]}  Kd4 {[%clk 0:00:28]} 54. Ke2 {[%clk 0:01:05]}  Ke4 {[%clk 0:00:27]} 55. f3+ {[%clk 0:01:05]}  Ke5 {[%clk 0:00:28]} 56. Ke3 {[%clk 0:01:05]}  f5 {[%clk 0:00:27]} 57. gxf5 {[%clk 0:01:05]}  Kxf5 {[%clk 0:00:28]} 58. Ke2 {[%clk 0:01:05]}  Kf4 {[%clk 0:00:29]} 59. Kf2 {[%clk 0:01:06]}  g4 {[%clk 0:00:30]} 60. fxg4 {[%clk 0:01:06]}  Kxg4 {[%clk 0:00:31]} 1/2-1/2


[Site "https://www.chess.com"]

[Event "Titled Tuesday Blitz March 22 Late 2022"]
[White "Sailer, Mike"]
[Black "Horak, Martin"]
[WhiteFideId "2012901"]
[BlackFideId "367095"]
[WhiteElo "2109"]
[BlackElo "1997"]
[Result "0-1"]
[Round "02"]
[TimeControl "180+1"]
[Date "2022.03.22"]
[WhiteClock "0:00:08"]
[BlackClock "0:00:46"]

1. d4 {[%clk 0:03:00]}  Nf6 {[%clk 0:02:59]} 2. Nf3 {[%clk 0:03:00]}  c5 {[%clk 0:02:53]} 3. e3 {[%clk 0:02:58]}  g6 {[%clk 0:02:52]} 4. Be2 {[%clk 0:02:57]}  Bg7 {[%clk 0:02:52]} 5. O-O {[%clk 0:02:57]}  O-O {[%clk 0:02:52]} 6. b3 {[%clk 0:02:57]}  cxd4 {[%clk 0:02:52]} 7. exd4 {[%clk 0:02:56]}  d5 {[%clk 0:02:52]} 8. Bf4 {[%clk 0:02:52]}  Nc6 {[%clk 0:02:51]} 9. Nbd2 {[%clk 0:02:46]}  Ne4 {[%clk 0:02:43]} 10. Nxe4 {[%clk 0:02:11]}  dxe4 {[%clk 0:02:43]} 11. Ng5 {[%clk 0:02:01]}  Nxd4 {[%clk 0:02:33]} 12. Bc4 {[%clk 0:01:38]}  b5 {[%clk 0:02:11]} 13. Bxf7+ {[%clk 0:01:27]}  Rxf7 {[%clk 0:02:03]} 14. Nxf7 {[%clk 0:01:27]}  Kxf7 {[%clk 0:02:03]} 15. c3 {[%clk 0:01:24]}  Ne6 {[%clk 0:02:02]} 16. Qg4 {[%clk 0:01:06]}  Nxf4 {[%clk 0:01:44]} 17. Qxf4+ {[%clk 0:01:06]}  Kg8 {[%clk 0:01:36]} 18. Rad1 {[%clk 0:00:58]}  Qf8 {[%clk 0:01:21]} 19. Qxe4 {[%clk 0:00:57]}  Bf5 {[%clk 0:01:21]} 20. Qd5+ {[%clk 0:00:57]}  Kh8 {[%clk 0:01:21]} 21. Qxb5 {[%clk 0:00:54]}  Bxc3 {[%clk 0:01:19]} 22. Qc5 {[%clk 0:00:44]}  Bf6 {[%clk 0:01:14]} 23. h3 {[%clk 0:00:41]}  Qc8 {[%clk 0:01:11]} 24. Qe3 {[%clk 0:00:35]}  Qc6 {[%clk 0:01:06]} 25. Rc1 {[%clk 0:00:33]}  Qb6 {[%clk 0:01:06]} 26. Qf3 {[%clk 0:00:30]}  Rf8 {[%clk 0:01:03]} 27. Rfd1 {[%clk 0:00:27]}  Bd4 {[%clk 0:00:58]} 28. Rd2 {[%clk 0:00:18]}  Bf6 {[%clk 0:00:52]} 29. Rcd1 {[%clk 0:00:17]}  Bc8 {[%clk 0:00:50]} 30. Qa8 {[%clk 0:00:11]}  Kg7 {[%clk 0:00:47]} 31. Qe4 {[%clk 0:00:10]}  Bb7 {[%clk 0:00:46]} 32. Qe6 {[%clk 0:00:08]}  Qxe6 {[%clk 0:00:46]} 0-1


[Site "https://www.chess.com"]

[Event "Titled Tuesday Blitz March 22 Late 2022"]
[White "Sanal, Vahap"]
[Black "Taichman, Ori"]
[WhiteFideId "6300545"]
[BlackFideId "2804069"]
[WhiteElo "2603"]
[BlackElo "2227"]
[Result "1-0"]
[Round "02"]
[TimeControl "180+1"]
[Date "2022.03.22"]
[WhiteClock "0:01:42"]
[BlackClock "0:00:05"]

1. e4 {[%clk 0:03:00]}  c5 {[%clk 0:02:59]} 2. Nf3 {[%clk 0:03:01]}  Nc6 {[%clk 0:02:49]} 3. d4 {[%clk 0:02:58]}  cxd4 {[%clk 0:02:50]} 4. Nxd4 {[%clk 0:02:59]}  d5 {[%clk 0:02:50]} 5. Nxc6 {[%clk 0:02:50]}  bxc6 {[%clk 0:02:48]} 6. exd5 {[%clk 0:02:50]}  Qxd5 {[%clk 0:02:48]} 7. Bd2 {[%clk 0:02:47]}  e5 {[%clk 0:02:40]} 8. Nc3 {[%clk 0:02:47]}  Qe6 {[%clk 0:02:41]} 9. Be2 {[%clk 0:02:44]}  Nf6 {[%clk 0:02:41]} 10. O-O {[%clk 0:02:45]}  Be7 {[%clk 0:02:39]} 11. b3 {[%clk 0:02:35]}  O-O {[%clk 0:02:38]} 12. Bc4 {[%clk 0:02:35]}  Qf5 {[%clk 0:02:32]} 13. Re1 {[%clk 0:02:18]}  Bc5 {[%clk 0:02:23]} 14. Qe2 {[%clk 0:02:16]}  Rd8 {[%clk 0:01:52]} 15. Bd3 {[%clk 0:02:13]}  e4 {[%clk 0:01:39]} 16. Nxe4 {[%clk 0:02:13]}  Nxe4 {[%clk 0:01:39]} 17. Bxe4 {[%clk 0:02:13]}  Qxf2+ {[%clk 0:01:38]} 18. Qxf2 {[%clk 0:02:13]}  Bxf2+ {[%clk 0:01:38]} 19. Kxf2 {[%clk 0:02:14]}  Rxd2+ {[%clk 0:01:38]} 20. Re2 {[%clk 0:02:15]}  Rxe2+ {[%clk 0:01:38]} 21. Kxe2 {[%clk 0:02:16]}  Bg4+ {[%clk 0:01:37]} 22. Kf2 {[%clk 0:02:16]}  Rd8 {[%clk 0:01:30]} 23. h3 {[%clk 0:02:15]}  Bh5 {[%clk 0:01:26]} 24. Ke3 {[%clk 0:02:10]}  c5 {[%clk 0:01:23]} 25. Rf1 {[%clk 0:02:07]}  Re8 {[%clk 0:01:18]} 26. Kd3 {[%clk 0:01:58]}  Be2+ {[%clk 0:01:06]} 27. Kxe2 {[%clk 0:01:58]}  Rxe4+ {[%clk 0:01:07]} 28. Kd3 {[%clk 0:01:58]}  Rd4+ {[%clk 0:01:03]} 29. Ke3 {[%clk 0:01:58]}  g6 {[%clk 0:01:02]} 30. Rf6 {[%clk 0:01:58]}  Rd7 {[%clk 0:00:50]} 31. Rc6 {[%clk 0:01:55]}  Re7+ {[%clk 0:00:51]} 32. Kd3 {[%clk 0:01:54]}  Rd7+ {[%clk 0:00:51]} 33. Kc3 {[%clk 0:01:55]}  Rd5 {[%clk 0:00:50]} 34. Ra6 {[%clk 0:01:55]}  Rg5 {[%clk 0:00:50]} 35. g4 {[%clk 0:01:54]}  h5 {[%clk 0:00:50]} 36. Rxa7 {[%clk 0:01:52]}  hxg4 {[%clk 0:00:46]} 37. hxg4 {[%clk 0:01:53]}  Rxg4 {[%clk 0:00:46]} 38. a4 {[%clk 0:01:54]}  Rg3+ {[%clk 0:00:24]} 39. Kc4 {[%clk 0:01:53]}  f5 {[%clk 0:00:24]} 40. a5 {[%clk 0:01:51]}  f4 {[%clk 0:00:24]} 41. Rd7 {[%clk 0:01:51]}  f3 {[%clk 0:00:23]} 42. Rd1 {[%clk 0:01:47]}  f2 {[%clk 0:00:14]} 43. Rf1 {[%clk 0:01:47]}  Rf3 {[%clk 0:00:13]} 44. a6 {[%clk 0:01:47]}  Rf7 {[%clk 0:00:08]} 45. Kxc5 {[%clk 0:01:47]}  g5 {[%clk 0:00:09]} 46. a7 {[%clk 0:01:42]}  Rxa7 {[%clk 0:00:08]} 47. Rxf2 {[%clk 0:01:43]}  g4 {[%clk 0:00:07]} 48. b4 {[%clk 0:01:41]}  g3 {[%clk 0:00:06]} 49. Rg2 {[%clk 0:01:41]}  Rc7+ {[%clk 0:00:05]} 50. Kd4 {[%clk 0:01:39]}  Kf7 {[%clk 0:00:05]} 51. c4 {[%clk 0:01:38]}  Rd7+ {[%clk 0:00:05]} 52. Kc3 {[%clk 0:01:39]}  Ke6 {[%clk 0:00:05]} 53. Rxg3 {[%clk 0:01:39]}  Rh7 {[%clk 0:00:04]} 54. Rd3 {[%clk 0:01:39]}  Rh1 {[%clk 0:00:04]} 55. b5 {[%clk 0:01:40]}  Rb1 {[%clk 0:00:04]} 56. Rd2 {[%clk 0:01:39]}  Ke5 {[%clk 0:00:03]} 57. Rd5+ {[%clk 0:01:39]}  Ke6 {[%clk 0:00:04]} 58. Kd4 {[%clk 0:01:39]}  Ke7 {[%clk 0:00:03]} 59. Kc5 {[%clk 0:01:40]}  Ke6 {[%clk 0:00:04]} 60. Kc6 {[%clk 0:01:39]}  Ke7 {[%clk 0:00:04]} 61. c5 {[%clk 0:01:39]}  Ke6 {[%clk 0:00:05]} 62. b6 {[%clk 0:01:39]}  Rb2 {[%clk 0:00:04]} 63. Rd6+ {[%clk 0:01:40]}  Ke7 {[%clk 0:00:04]} 64. b7 {[%clk 0:01:41]}  Ke8 {[%clk 0:00:04]} 65. Kc7 {[%clk 0:01:41]}  Ke7 {[%clk 0:00:05]} 66. b8=Q {[%clk 0:01:41]}  Rxb8 {[%clk 0:00:05]} 67. Kxb8 {[%clk 0:01:42]} 1-0


[Site "https://www.chess.com"]

[Event "Titled Tuesday Blitz March 22 Late 2022"]
[White "Sarana, Alexey"]
[Black "Sochacki, Christophe"]
[WhiteFideId "24133795"]
[BlackFideId "662569"]
[WhiteElo "2666"]
[BlackElo "2480"]
[Result "1-0"]
[Round "02"]
[TimeControl "180+1"]
[Date "2022.03.22"]
[WhiteClock "0:00:19"]
[BlackClock "0:00:13"]

1. d4 {[%clk 0:03:00]}  Nc6 {[%clk 0:02:59]} 2. Nf3 {[%clk 0:02:58]}  d6 {[%clk 0:02:58]} 3. e4 {[%clk 0:02:57]}  Nf6 {[%clk 0:02:55]} 4. Bd3 {[%clk 0:02:54]}  Bg4 {[%clk 0:02:52]} 5. c3 {[%clk 0:02:54]}  g6 {[%clk 0:02:49]} 6. d5 {[%clk 0:02:48]}  Bxf3 {[%clk 0:02:29]} 7. gxf3 {[%clk 0:02:46]}  Ne5 {[%clk 0:02:28]} 8. Be2 {[%clk 0:02:35]}  Bg7 {[%clk 0:02:22]} 9. Be3 {[%clk 0:02:33]}  O-O {[%clk 0:02:20]} 10. Nd2 {[%clk 0:02:31]}  Qd7 {[%clk 0:02:14]} 11. h4 {[%clk 0:02:31]}  c6 {[%clk 0:02:13]} 12. c4 {[%clk 0:02:31]}  cxd5 {[%clk 0:02:12]} 13. cxd5 {[%clk 0:02:32]}  Rac8 {[%clk 0:02:10]} 14. Bxa7 {[%clk 0:02:26]}  Bh6 {[%clk 0:01:49]} 15. Be3 {[%clk 0:02:22]}  Bxe3 {[%clk 0:01:44]} 16. fxe3 {[%clk 0:02:23]}  Qc7 {[%clk 0:01:45]} 17. f4 {[%clk 0:02:21]}  Ned7 {[%clk 0:01:42]} 18. Kf2 {[%clk 0:02:12]}  Nc5 {[%clk 0:01:38]} 19. Qb1 {[%clk 0:02:12]}  e5 {[%clk 0:01:28]} 20. dxe6 {[%clk 0:01:53]}  fxe6 {[%clk 0:01:27]} 21. b4 {[%clk 0:01:52]}  Na4 {[%clk 0:01:22]} 22. Qb3 {[%clk 0:01:52]}  Nc3 {[%clk 0:01:23]} 23. Bf3 {[%clk 0:01:50]}  d5 {[%clk 0:01:09]} 24. e5 {[%clk 0:01:50]}  d4 {[%clk 0:00:54]} 25. Qxe6+ {[%clk 0:01:28]}  Kg7 {[%clk 0:00:53]} 26. exd4 {[%clk 0:01:02]}  Nfd5 {[%clk 0:00:36]} 27. Bxd5 {[%clk 0:00:50]}  Rce8 {[%clk 0:00:36]} 28. Qd6 {[%clk 0:00:41]}  Qxd6 {[%clk 0:00:36]} 29. exd6 {[%clk 0:00:41]}  Re2+ {[%clk 0:00:36]} 30. Kf3 {[%clk 0:00:36]}  Rxd2 {[%clk 0:00:36]} 31. Ke3 {[%clk 0:00:36]}  Rb2 {[%clk 0:00:27]} 32. Bb3 {[%clk 0:00:35]}  Re8+ {[%clk 0:00:19]} 33. Kd3 {[%clk 0:00:35]}  Ne4 {[%clk 0:00:20]} 34. Rhe1 {[%clk 0:00:33]}  Rd2+ {[%clk 0:00:18]} 35. Ke3 {[%clk 0:00:29]}  Rh2 {[%clk 0:00:13]} 36. d7 {[%clk 0:00:23]}  Rh3+ {[%clk 0:00:14]} 37. Ke2 {[%clk 0:00:23]}  Rd8 {[%clk 0:00:14]} 38. Be6 {[%clk 0:00:20]}  Ra3 {[%clk 0:00:14]} 39. Rac1 {[%clk 0:00:20]}  Nc3+ {[%clk 0:00:13]} 40. Kd2 {[%clk 0:00:19]}  Ne4+ {[%clk 0:00:13]} 41. Rxe4 {[%clk 0:00:19]} 1-0


[Site "https://www.chess.com"]

[Event "Titled Tuesday Blitz March 22 Late 2022"]
[White "Saveliev, Alexei"]
[Black "Niemann, Hans Moke"]
[WhiteFideId "24128546"]
[BlackFideId "2093596"]
[WhiteElo "2281"]
[BlackElo "2632"]
[Result "0-1"]
[Round "02"]
[TimeControl "180+1"]
[Date "2022.03.22"]
[WhiteClock "0:00:41"]
[BlackClock "0:01:53"]

1. c4 {[%clk 0:03:00]}  g6 {[%clk 0:02:57]} 2. Nc3 {[%clk 0:03:01]}  Bg7 {[%clk 0:02:58]} 3. d4 {[%clk 0:03:01]}  c5 {[%clk 0:02:57]} 4. d5 {[%clk 0:03:02]}  Bxc3+ {[%clk 0:02:58]} 5. bxc3 {[%clk 0:03:02]}  f5 {[%clk 0:02:58]} 6. e4 {[%clk 0:03:03]}  fxe4 {[%clk 0:02:59]} 7. f3 {[%clk 0:03:04]}  e5 {[%clk 0:02:59]} 8. Be3 {[%clk 0:02:54]}  d6 {[%clk 0:02:57]} 9. g3 {[%clk 0:02:25]}  Nf6 {[%clk 0:02:51]} 10. fxe4 {[%clk 0:02:23]}  Nxe4 {[%clk 0:02:50]} 11. Bd3 {[%clk 0:02:21]}  Nf6 {[%clk 0:02:45]} 12. Ne2 {[%clk 0:02:10]}  O-O {[%clk 0:02:43]} 13. O-O {[%clk 0:02:11]}  Bh3 {[%clk 0:02:42]} 14. Qd2 {[%clk 0:02:05]}  Bxf1 {[%clk 0:02:41]} 15. Rxf1 {[%clk 0:02:06]}  Ng4 {[%clk 0:02:41]} 16. Rxf8+ {[%clk 0:02:02]}  Qxf8 {[%clk 0:02:41]} 17. h3 {[%clk 0:01:54]}  Nxe3 {[%clk 0:02:40]} 18. Qxe3 {[%clk 0:01:55]}  Nd7 {[%clk 0:02:40]} 19. g4 {[%clk 0:01:49]}  Qe7 {[%clk 0:02:40]} 20. Ng3 {[%clk 0:01:49]}  Rf8 {[%clk 0:02:39]} 21. Ne4 {[%clk 0:01:48]}  Rf4 {[%clk 0:02:39]} 22. Bc2 {[%clk 0:01:40]}  Nf6 {[%clk 0:02:37]} 23. Ng3 {[%clk 0:01:36]}  Qf7 {[%clk 0:02:25]} 24. Kg2 {[%clk 0:01:33]}  Rxc4 {[%clk 0:02:21]} 25. Bb3 {[%clk 0:01:28]}  Rf4 {[%clk 0:02:21]} 26. c4 {[%clk 0:01:26]}  Nd7 {[%clk 0:02:17]} 27. Ne4 {[%clk 0:01:19]}  Rxe4 {[%clk 0:02:17]} 28. Qxe4 {[%clk 0:01:19]}  Qf4 {[%clk 0:02:18]} 29. Qe1 {[%clk 0:01:12]}  Nf6 {[%clk 0:02:15]} 30. Qa5 {[%clk 0:00:58]}  Ne4 {[%clk 0:02:07]} 31. Qd8+ {[%clk 0:00:53]}  Qf8 {[%clk 0:02:04]} 32. Qh4 {[%clk 0:00:53]}  Qf6 {[%clk 0:02:00]} 33. Qe1 {[%clk 0:00:53]}  Qf4 {[%clk 0:02:00]} 34. Bc2 {[%clk 0:00:48]}  Nd2 {[%clk 0:01:54]} 35. Qe2 {[%clk 0:00:46]}  Nxc4 {[%clk 0:01:53]} 36. Be4 {[%clk 0:00:41]}  Ne3+ {[%clk 0:01:53]} 0-1


[Site "https://www.chess.com"]

[Event "Titled Tuesday Blitz March 22 Late 2022"]
[White "Schuster, Karsten"]
[Black "Seul, Georg"]
[WhiteFideId "4611071"]
[BlackFideId "4601653"]
[WhiteElo "2367"]
[BlackElo "2271"]
[Result "1-0"]
[Round "02"]
[TimeControl "180+1"]
[Date "2022.03.22"]
[WhiteClock "0:01:41"]
[BlackClock "0:00:10"]

1. d4 {[%clk 0:03:00]}  f5 {[%clk 0:02:58]} 2. c4 {[%clk 0:03:01]}  Nf6 {[%clk 0:02:58]} 3. Nc3 {[%clk 0:03:01]}  d6 {[%clk 0:02:58]} 4. f3 {[%clk 0:03:01]}  e5 {[%clk 0:02:55]} 5. d5 {[%clk 0:03:00]}  g6 {[%clk 0:02:45]} 6. e4 {[%clk 0:02:59]}  Bg7 {[%clk 0:02:45]} 7. Bd3 {[%clk 0:02:59]}  O-O {[%clk 0:02:44]} 8. Nge2 {[%clk 0:02:59]}  Na6 {[%clk 0:02:42]} 9. Bg5 {[%clk 0:02:59]}  h6 {[%clk 0:02:39]} 10. Bh4 {[%clk 0:02:58]}  Nc5 {[%clk 0:02:38]} 11. Bc2 {[%clk 0:02:58]}  g5 {[%clk 0:02:36]} 12. Bf2 {[%clk 0:02:57]}  fxe4 {[%clk 0:02:32]} 13. fxe4 {[%clk 0:02:44]}  Ng4 {[%clk 0:02:29]} 14. Bxc5 {[%clk 0:02:39]}  dxc5 {[%clk 0:02:29]} 15. Qd2 {[%clk 0:02:39]}  Bd7 {[%clk 0:02:03]} 16. h3 {[%clk 0:02:39]}  Nf6 {[%clk 0:02:00]} 17. O-O-O {[%clk 0:02:39]}  Nh5 {[%clk 0:01:59]} 18. h4 {[%clk 0:02:35]}  g4 {[%clk 0:01:57]} 19. g3 {[%clk 0:02:29]}  Rf3 {[%clk 0:01:53]} 20. Rdg1 {[%clk 0:02:23]}  Qe7 {[%clk 0:01:50]} 21. Kb1 {[%clk 0:02:20]}  Raf8 {[%clk 0:01:50]} 22. Bd1 {[%clk 0:02:13]}  a6 {[%clk 0:01:47]} 23. Nc1 {[%clk 0:02:11]}  Rxg3 {[%clk 0:01:41]} 24. Rxg3 {[%clk 0:02:06]}  Nxg3 {[%clk 0:01:41]} 25. Rg1 {[%clk 0:02:06]}  Qxh4 {[%clk 0:01:18]} 26. Qe1 {[%clk 0:02:05]}  Nf5 {[%clk 0:01:01]} 27. exf5 {[%clk 0:02:05]}  Bxf5+ {[%clk 0:01:01]} 28. Bc2 {[%clk 0:01:58]}  Bxc2+ {[%clk 0:00:56]} 29. Kxc2 {[%clk 0:01:57]}  Qh2+ {[%clk 0:00:26]} 30. Kb1 {[%clk 0:01:56]}  Rf2 {[%clk 0:00:24]} 31. Nd3 {[%clk 0:01:56]}  g3 {[%clk 0:00:20]} 32. Ne4 {[%clk 0:01:44]}  Re2 {[%clk 0:00:15]} 33. Qxg3 {[%clk 0:01:44]}  Qxg3 {[%clk 0:00:13]} 34. Nxg3 {[%clk 0:01:44]}  Rd2 {[%clk 0:00:12]} 35. Nf5 {[%clk 0:01:42]}  Rxd3 {[%clk 0:00:09]} 36. Rxg7+ {[%clk 0:01:42]}  Kf8 {[%clk 0:00:10]} 37. Rxc7 {[%clk 0:01:41]} 1-0


[Site "https://www.chess.com"]

[Event "Titled Tuesday Blitz March 22 Late 2022"]
[White "Sharafiev, Azat"]
[Black "Urazayev, Arystanbek"]
[WhiteFideId "4186214"]
[BlackFideId "13709810"]
[WhiteElo "2299"]
[BlackElo "2393"]
[Result "1/2-1/2"]
[Round "02"]
[TimeControl "180+1"]
[Date "2022.03.22"]
[WhiteClock "0:00:18"]
[BlackClock "0:00:22"]

1. d4 {[%clk 0:03:00]}  d5 {[%clk 0:03:00]} 2. c4 {[%clk 0:02:59]}  e6 {[%clk 0:03:00]} 3. Nc3 {[%clk 0:02:59]}  a6 {[%clk 0:03:01]} 4. cxd5 {[%clk 0:02:56]}  exd5 {[%clk 0:03:02]} 5. Nf3 {[%clk 0:02:50]}  c6 {[%clk 0:03:02]} 6. Bg5 {[%clk 0:02:48]}  Be7 {[%clk 0:03:01]} 7. Bxe7 {[%clk 0:02:48]}  Nxe7 {[%clk 0:03:02]} 8. e3 {[%clk 0:02:49]}  O-O {[%clk 0:03:03]} 9. Be2 {[%clk 0:02:42]}  Bf5 {[%clk 0:03:03]} 10. O-O {[%clk 0:02:42]}  Nd7 {[%clk 0:03:03]} 11. b4 {[%clk 0:02:42]}  Nc8 {[%clk 0:03:00]} 12. a4 {[%clk 0:02:42]}  Nf6 {[%clk 0:02:51]} 13. b5 {[%clk 0:02:41]}  cxb5 {[%clk 0:02:51]} 14. axb5 {[%clk 0:02:41]}  a5 {[%clk 0:02:52]} 15. Ne5 {[%clk 0:02:35]}  Nd6 {[%clk 0:02:48]} 16. Qb3 {[%clk 0:02:27]}  Nde4 {[%clk 0:02:17]} 17. Rfc1 {[%clk 0:02:27]}  Nxc3 {[%clk 0:02:12]} 18. Qxc3 {[%clk 0:02:21]}  Rc8 {[%clk 0:02:07]} 19. Qd2 {[%clk 0:02:15]}  Rxc1+ {[%clk 0:01:58]} 20. Qxc1 {[%clk 0:02:15]}  Qb6 {[%clk 0:01:49]} 21. Qc5 {[%clk 0:02:05]}  Qe6 {[%clk 0:01:49]} 22. b6 {[%clk 0:02:00]}  Ne4 {[%clk 0:01:20]} 23. Qxa5 {[%clk 0:02:00]}  f6 {[%clk 0:01:21]} 24. Nd3 {[%clk 0:02:00]}  Rc8 {[%clk 0:01:20]} 25. Nf4 {[%clk 0:01:57]}  Qd6 {[%clk 0:01:02]} 26. Qxd5+ {[%clk 0:01:54]}  Qxd5 {[%clk 0:01:03]} 27. Nxd5 {[%clk 0:01:55]}  Kf7 {[%clk 0:01:03]} 28. Nc7 {[%clk 0:01:45]}  Nd6 {[%clk 0:01:04]} 29. Bf3 {[%clk 0:01:33]}  Rb8 {[%clk 0:01:04]} 30. h4 {[%clk 0:01:30]}  g5 {[%clk 0:01:04]} 31. hxg5 {[%clk 0:01:22]}  fxg5 {[%clk 0:01:04]} 32. Ra5 {[%clk 0:01:22]}  g4 {[%clk 0:01:03]} 33. Bd5+ {[%clk 0:01:16]}  Kf6 {[%clk 0:01:04]} 34. f3 {[%clk 0:01:15]}  gxf3 {[%clk 0:00:56]} 35. gxf3 {[%clk 0:01:16]}  Nc8 {[%clk 0:00:55]} 36. Rb5 {[%clk 0:01:02]}  Bd7 {[%clk 0:00:56]} 37. Rb2 {[%clk 0:01:01]}  Ne7 {[%clk 0:00:56]} 38. Be4 {[%clk 0:01:00]}  h5 {[%clk 0:00:56]} 39. Rh2 {[%clk 0:00:53]}  Rh8 {[%clk 0:00:45]} 40. Bxb7 {[%clk 0:00:51]}  Rb8 {[%clk 0:00:43]} 41. Be4 {[%clk 0:00:45]}  Rxb6 {[%clk 0:00:43]} 42. Rxh5 {[%clk 0:00:45]}  Rb3 {[%clk 0:00:42]} 43. Kf2 {[%clk 0:00:45]}  Rb2+ {[%clk 0:00:36]} 44. Kg3 {[%clk 0:00:45]}  Ba4 {[%clk 0:00:33]} 45. Nd5+ {[%clk 0:00:44]}  Nxd5 {[%clk 0:00:34]} 46. Rxd5 {[%clk 0:00:44]}  Bd1 {[%clk 0:00:30]} 47. Kf4 {[%clk 0:00:44]}  Rh2 {[%clk 0:00:30]} 48. Rd6+ {[%clk 0:00:43]}  Ke7 {[%clk 0:00:31]} 49. Rb6 {[%clk 0:00:43]}  Rh4+ {[%clk 0:00:28]} 50. Kg5 {[%clk 0:00:41]}  Rh1 {[%clk 0:00:26]} 51. Kf4 {[%clk 0:00:34]}  Rh4+ {[%clk 0:00:26]} 52. Kg3 {[%clk 0:00:31]}  Rh1 {[%clk 0:00:26]} 53. f4 {[%clk 0:00:29]}  Re1 {[%clk 0:00:26]} 54. f5 {[%clk 0:00:16]}  Rxe3+ {[%clk 0:00:25]} 55. Kf4 {[%clk 0:00:17]}  Re1 {[%clk 0:00:20]} 56. Rb1 {[%clk 0:00:16]}  Rxe4+ {[%clk 0:00:19]} 57. Kxe4 {[%clk 0:00:14]}  Bc2+ {[%clk 0:00:19]} 58. Ke5 {[%clk 0:00:15]}  Bxb1 {[%clk 0:00:20]} 59. f6+ {[%clk 0:00:16]}  Kf7 {[%clk 0:00:21]} 60. d5 {[%clk 0:00:16]}  Ba2 {[%clk 0:00:21]} 61. d6 {[%clk 0:00:16]}  Be6 {[%clk 0:00:21]} 62. d7 {[%clk 0:00:16]}  Bxd7 {[%clk 0:00:21]} 63. Kd6 {[%clk 0:00:17]}  Be6 {[%clk 0:00:22]} 64. Kc7 {[%clk 0:00:18]}  Kxf6 {[%clk 0:00:22]} 1/2-1/2


[Site "https://www.chess.com"]

[Event "Titled Tuesday Blitz March 22 Late 2022"]
[White "Shimanov, Aleksandr"]
[Black "Arabidze, Meri"]
[WhiteFideId "4198603"]
[BlackFideId "13604040"]
[WhiteElo "2636"]
[BlackElo "2335"]
[Result "1-0"]
[Round "02"]
[TimeControl "180+1"]
[Date "2022.03.22"]
[WhiteClock "0:00:29"]
[BlackClock "0:00:02"]

1. e4 {[%clk 0:03:00]}  c5 {[%clk 0:02:59]} 2. Nf3 {[%clk 0:02:59]}  e6 {[%clk 0:03:00]} 3. c3 {[%clk 0:02:58]}  d5 {[%clk 0:03:00]} 4. e5 {[%clk 0:02:58]}  d4 {[%clk 0:03:00]} 5. Bd3 {[%clk 0:02:58]}  Nc6 {[%clk 0:02:59]} 6. O-O {[%clk 0:02:52]}  Nge7 {[%clk 0:02:59]} 7. Be4 {[%clk 0:02:40]}  Qc7 {[%clk 0:02:48]} 8. Re1 {[%clk 0:02:36]}  Ng6 {[%clk 0:02:47]} 9. Bxc6+ {[%clk 0:02:32]}  Qxc6 {[%clk 0:02:48]} 10. cxd4 {[%clk 0:02:32]}  cxd4 {[%clk 0:02:38]} 11. Nxd4 {[%clk 0:02:33]}  Qd5 {[%clk 0:02:36]} 12. Nf3 {[%clk 0:02:32]}  Bd7 {[%clk 0:02:12]} 13. Nc3 {[%clk 0:02:31]}  Qa5 {[%clk 0:02:12]} 14. d4 {[%clk 0:02:28]}  Bc6 {[%clk 0:02:10]} 15. Bd2 {[%clk 0:02:27]}  Rd8 {[%clk 0:02:05]} 16. h4 {[%clk 0:02:06]}  Be7 {[%clk 0:01:54]} 17. h5 {[%clk 0:02:05]}  Nf8 {[%clk 0:00:53]} 18. h6 {[%clk 0:01:56]}  gxh6 {[%clk 0:00:54]} 19. Ne4 {[%clk 0:01:39]}  Qd5 {[%clk 0:00:47]} 20. Bxh6 {[%clk 0:01:32]}  Rg8 {[%clk 0:00:47]} 21. Ng3 {[%clk 0:01:21]}  Rg4 {[%clk 0:00:41]} 22. Qb3 {[%clk 0:01:03]}  Qxb3 {[%clk 0:00:30]} 23. axb3 {[%clk 0:01:04]}  Bxf3 {[%clk 0:00:27]} 24. gxf3 {[%clk 0:01:05]}  Rgxd4 {[%clk 0:00:28]} 25. Rxa7 {[%clk 0:01:06]}  Rb4 {[%clk 0:00:25]} 26. Nh5 {[%clk 0:00:51]}  Ng6 {[%clk 0:00:14]} 27. Re3 {[%clk 0:00:35]}  Bc5 {[%clk 0:00:12]} 28. Nf6+ {[%clk 0:00:31]}  Ke7 {[%clk 0:00:11]} 29. Rc3 {[%clk 0:00:32]}  Rc8 {[%clk 0:00:05]} 30. Ra5 {[%clk 0:00:29]}  b6 {[%clk 0:00:02]} 31. Ra7+ {[%clk 0:00:29]} 1-0


[Site "https://www.chess.com"]